[Event "Late-Titled-Tuesday-Blitz-June-25-2024"]
[Site "Chess.com"]
[Date "2024.06.25"]
[Round "2"]
[White "malakismayil"]
[Black "Zurability"]
[Result "0-1"]
[WhiteElo "2544"]
[BlackElo "2771"]
[TimeControl "180+1"]
[EndTime "14:17:24 PDT"]
[Termination "Zurability won on time"]

1. e4 {[%clk 0:02:54.3]} 1... c5 {[%clk 0:02:59.7]} 2. Nf3 {[%clk 0:02:54.5]}
2... d6 {[%clk 0:02:59.9]} 3. Bb5+ {[%clk 0:02:54.7]} 3... Bd7 {[%clk
0:02:55.9]} 4. Bxd7+ {[%clk 0:02:53.1]} 4... Qxd7 {[%clk 0:02:56.8]} 5. O-O
{[%clk 0:02:51.9]} 5... Nf6 {[%clk 0:02:55.7]} 6. Re1 {[%clk 0:02:50.6]} 6...
Nc6 {[%clk 0:02:55.8]} 7. c4 {[%clk 0:02:50]} 7... g6 {[%clk 0:02:51.6]} 8. d4
{[%clk 0:02:48.8]} 8... cxd4 {[%clk 0:02:51.3]} 9. Nxd4 {[%clk 0:02:49.7]} 9...
Bg7 {[%clk 0:02:51.8]} 10. Nc3 {[%clk 0:02:49.5]} 10... O-O {[%clk 0:02:52.3]}
11. Nc2 {[%clk 0:02:25.6]} 11... Rfc8 {[%clk 0:02:41.8]} 12. Bd2 {[%clk
0:02:14.1]} 12... Rab8 {[%clk 0:02:20.2]} 13. b3 {[%clk 0:02:11.6]} 13... b6
{[%clk 0:02:14.5]} 14. Rc1 {[%clk 0:02:07.7]} 14... a6 {[%clk 0:02:07.5]} 15. f3
{[%clk 0:01:57.7]} 15... b5 {[%clk 0:02:05.4]} 16. Ne3 {[%clk 0:01:58.3]} 16...
Ne5 {[%clk 0:02:03.8]} 17. Qe2 {[%clk 0:01:44.8]} 17... bxc4 {[%clk 0:01:56.9]}
18. bxc4 {[%clk 0:01:45.7]} 18... Rb2 {[%clk 0:01:50.4]} 19. Rb1 {[%clk
0:01:44]} 19... Rcb8 {[%clk 0:01:38.2]} 20. Rxb2 {[%clk 0:01:36.5]} 20... Rxb2
{[%clk 0:01:37.9]} 21. Rb1 {[%clk 0:01:37.2]} 21... Qb7 {[%clk 0:01:34.1]} 22.
Qd1 {[%clk 0:01:33.7]} 22... e6 {[%clk 0:01:23]} 23. Qc1 {[%clk 0:01:31.5]}
23... Rxb1 {[%clk 0:01:20.2]} 24. Nxb1 {[%clk 0:01:32.4]} 24... Nfd7 {[%clk
0:01:18.2]} 25. Nc3 {[%clk 0:01:25]} 25... Nc5 {[%clk 0:01:17.2]} 26. Qc2 {[%clk
0:01:24.5]} 26... Ned3 {[%clk 0:01:10.3]} 27. Na4 {[%clk 0:01:04.2]} 27... Bd4
{[%clk 0:00:55.8]} 28. Nxc5 {[%clk 0:01:01.4]} 28... Nxc5 {[%clk 0:00:56.7]} 29.
Kf1 {[%clk 0:00:54.3]} 29... Qb6 {[%clk 0:00:54.4]} 30. Ke2 {[%clk 0:00:53.1]}
30... h5 {[%clk 0:00:51.2]} 31. Nd1 {[%clk 0:00:49.8]} 31... Nd7 {[%clk
0:00:46.9]} 32. Be3 {[%clk 0:00:48.8]} 32... Ne5 {[%clk 0:00:46.5]} 33. Bxd4
{[%clk 0:00:45.4]} 33... Qxd4 {[%clk 0:00:46.1]} 34. Ne3 {[%clk 0:00:46.1]}
34... h4 {[%clk 0:00:39]} 35. h3 {[%clk 0:00:44.6]} 35... Kg7 {[%clk 0:00:36.8]}
36. Qd2 {[%clk 0:00:43.5]} 36... Qb6 {[%clk 0:00:35.5]} 37. Qc2 {[%clk 0:00:38]}
37... g5 {[%clk 0:00:33]} 38. Qd2 {[%clk 0:00:31.6]} 38... Ng6 {[%clk
0:00:31.3]} 39. Qc3+ {[%clk 0:00:27.9]} 39... f6 {[%clk 0:00:29]} 40. Qd2 {[%clk
0:00:15.6]} 40... Nf4+ {[%clk 0:00:28]} 41. Kf2 {[%clk 0:00:16.2]} 41... Kf7
{[%clk 0:00:24.9]} 42. Kf1 {[%clk 0:00:10.7]} 42... Ke7 {[%clk 0:00:20.3]} 43.
Kf2 {[%clk 0:00:10.7]} 43... Qb1 {[%clk 0:00:18.8]} 44. Qc2 {[%clk 0:00:04.1]}
44... Nd3+ {[%clk 0:00:15.4]} 0-1

[Event "Late-Titled-Tuesday-Blitz-June-25-2024"]
[Site "Chess.com"]
[Date "2024.06.25"]
[Round "2"]
[White "LastGladiator1"]
[Black "rockstar0902"]
[Result "1-0"]
[WhiteElo "2983"]
[BlackElo "2608"]
[TimeControl "180+1"]
[EndTime "14:17:25 PDT"]
[Termination "LastGladiator1 won by resignation"]

1. e4 {[%clk 0:03:00.9]} 1... e6 {[%clk 0:02:59.1]} 2. d4 {[%clk 0:02:54]} 2...
d5 {[%clk 0:03:00]} 3. e5 {[%clk 0:02:53.6]} 3... c5 {[%clk 0:02:59.7]} 4. c3
{[%clk 0:02:53]} 4... Qb6 {[%clk 0:02:59.4]} 5. Nf3 {[%clk 0:02:52]} 5... Bd7
{[%clk 0:02:59.6]} 6. a4 {[%clk 0:02:49.9]} 6... cxd4 {[%clk 0:02:57.7]} 7. a5
{[%clk 0:02:32]} 7... Qc7 {[%clk 0:02:53.2]} 8. cxd4 {[%clk 0:02:31.5]} 8... Nc6
{[%clk 0:02:42.3]} 9. Bd2 {[%clk 0:02:27.4]} 9... Nh6 {[%clk 0:02:40.2]} 10. Bc3
{[%clk 0:02:13.5]} 10... Rc8 {[%clk 0:02:13.3]} 11. Be2 {[%clk 0:02:04.9]} 11...
Be7 {[%clk 0:01:56.3]} 12. O-O {[%clk 0:02:02.8]} 12... O-O {[%clk 0:01:55.9]}
13. Qd2 {[%clk 0:01:49.1]} 13... Nf5 {[%clk 0:01:51.9]} 14. Na3 {[%clk 0:01:49]}
14... a6 {[%clk 0:01:51]} 15. Nc2 {[%clk 0:01:42.4]} 15... Na7 {[%clk
0:01:10.5]} 16. Rfc1 {[%clk 0:01:10]} 16... Bb5 {[%clk 0:01:07.8]} 17. Bd1
{[%clk 0:01:08.8]} 17... Nc6 {[%clk 0:00:22.3]} 18. Na3 {[%clk 0:00:59.4]} 18...
Na7 {[%clk 0:00:13.4]} 19. Bc2 {[%clk 0:00:45.8]} 19... Bd7 {[%clk 0:00:13.4]}
20. Bd3 {[%clk 0:00:37.5]} 20... Bb5 {[%clk 0:00:13.6]} 21. Bc2 {[%clk 0:00:21]}
21... Bd7 {[%clk 0:00:12.9]} 22. Qf4 {[%clk 0:00:21.3]} 22... Bxa3 {[%clk
0:00:12.4]} 23. Bxf5 {[%clk 0:00:16.9]} 23... exf5 {[%clk 0:00:11.8]} 24. bxa3
{[%clk 0:00:17.5]} 24... Rfe8 {[%clk 0:00:07.2]} 25. h4 {[%clk 0:00:15.6]} 25...
Qd8 {[%clk 0:00:06.9]} 26. h5 {[%clk 0:00:15.8]} 26... Rc4 {[%clk 0:00:07]} 27.
h6 {[%clk 0:00:15.6]} 27... g6 {[%clk 0:00:06.9]} 28. Bb4 {[%clk 0:00:15.5]}
28... Nc6 {[%clk 0:00:06.8]} 29. Bc5 {[%clk 0:00:15.7]} 29... Qxa5 {[%clk
0:00:05.3]} 30. Rxc4 {[%clk 0:00:13.1]} 30... dxc4 {[%clk 0:00:06.2]} 31. Qg5
{[%clk 0:00:12.2]} 31... Qd8 {[%clk 0:00:05.9]} 32. Qf4 {[%clk 0:00:12.4]} 32...
b6 {[%clk 0:00:05.4]} 33. Bd6 {[%clk 0:00:12.3]} 33... Be6 {[%clk 0:00:05.7]}
34. Ng5 {[%clk 0:00:10.4]} 34... b5 {[%clk 0:00:05.4]} 35. Nxe6 {[%clk
0:00:09.5]} 35... Rxe6 {[%clk 0:00:06.3]} 36. d5 {[%clk 0:00:09.4]} 36... Rxd6
{[%clk 0:00:05.2]} 37. exd6 {[%clk 0:00:09.4]} 37... Qf6 {[%clk 0:00:05.8]} 38.
Re1 {[%clk 0:00:08.5]} 1-0

[Event "Late-Titled-Tuesday-Blitz-June-25-2024"]
[Site "Chess.com"]
[Date "2024.06.25"]
[Round "2"]
[White "artin10862"]
[Black "pooh2012"]
[Result "1-0"]
[WhiteElo "2904"]
[BlackElo "2601"]
[TimeControl "180+1"]
[EndTime "14:17:25 PDT"]
[Termination "artin10862 won on time"]

1. e4 {[%clk 0:03:00.9]} 1... c6 {[%clk 0:02:58]} 2. d4 {[%clk 0:02:58.3]} 2...
d5 {[%clk 0:02:58.4]} 3. exd5 {[%clk 0:02:58.2]} 3... cxd5 {[%clk 0:02:58.2]} 4.
Bd3 {[%clk 0:02:56.4]} 4... Nc6 {[%clk 0:02:57.5]} 5. c3 {[%clk 0:02:56.2]} 5...
Qc7 {[%clk 0:02:57.3]} 6. Ne2 {[%clk 0:02:50.2]} 6... Bg4 {[%clk 0:02:56.7]} 7.
h3 {[%clk 0:02:43.8]} 7... Bh5 {[%clk 0:02:43]} 8. Qb3 {[%clk 0:02:43.4]} 8...
e6 {[%clk 0:02:34.9]} 9. Nf4 {[%clk 0:02:40.6]} 9... Bg6 {[%clk 0:02:33.9]} 10.
Nxg6 {[%clk 0:02:40.1]} 10... hxg6 {[%clk 0:02:33.5]} 11. Nd2 {[%clk 0:02:40.8]}
11... Bd6 {[%clk 0:02:30.7]} 12. Nf3 {[%clk 0:02:41]} 12... Nge7 {[%clk
0:02:25.8]} 13. O-O {[%clk 0:02:39.6]} 13... O-O {[%clk 0:02:20.4]} 14. Re1
{[%clk 0:02:32.6]} 14... Rab8 {[%clk 0:02:11.2]} 15. a4 {[%clk 0:02:32]} 15...
a6 {[%clk 0:02:08.5]} 16. Qd1 {[%clk 0:02:21.5]} 16... b5 {[%clk 0:01:57.9]} 17.
Qe2 {[%clk 0:02:04.3]} 17... Qb6 {[%clk 0:01:33.6]} 18. h4 {[%clk 0:02:02.2]}
18... Na5 {[%clk 0:00:54.5]} 19. Bg5 {[%clk 0:01:12.6]} 19... Nc4 {[%clk
0:00:23.2]} 20. b4 {[%clk 0:01:08.7]} 20... a5 {[%clk 0:00:18.7]} 21. Bxc4
{[%clk 0:00:54]} 21... dxc4 {[%clk 0:00:17.3]} 22. bxa5 {[%clk 0:00:49.6]} 22...
Qxa5 {[%clk 0:00:17.7]} 23. axb5 {[%clk 0:00:47.3]} 23... Qxc3 {[%clk
0:00:17.8]} 24. Rec1 {[%clk 0:00:18.9]} 24... Qd3 {[%clk 0:00:17.4]} 25. Qxd3
{[%clk 0:00:19.3]} 25... cxd3 {[%clk 0:00:18.1]} 26. Ra6 {[%clk 0:00:20]} 26...
Bb4 {[%clk 0:00:09.7]} 27. Ne5 {[%clk 0:00:12.6]} 27... Rxb5 {[%clk 0:00:08]}
28. Nxd3 {[%clk 0:00:09.9]} 28... Nf5 {[%clk 0:00:08.3]} 29. Rc4 {[%clk
0:00:08]} 29... Be7 {[%clk 0:00:07.4]} 30. g3 {[%clk 0:00:07.8]} 30... Bxg5
{[%clk 0:00:07.2]} 31. hxg5 {[%clk 0:00:08.7]} 31... Rd5 {[%clk 0:00:07.6]} 32.
Raa4 {[%clk 0:00:06.4]} 32... Rfd8 {[%clk 0:00:07.9]} 33. Ne5 {[%clk 0:00:06.9]}
33... Rxd4 {[%clk 0:00:08.2]} 34. Rxd4 {[%clk 0:00:07.4]} 34... Nxd4 {[%clk
0:00:08.5]} 35. Ra7 {[%clk 0:00:07.5]} 35... Rd5 {[%clk 0:00:08]} 36. Ra8+
{[%clk 0:00:07]} 36... Kh7 {[%clk 0:00:07.5]} 37. Nxf7 {[%clk 0:00:07.4]} 37...
Nf3+ {[%clk 0:00:06.3]} 38. Kg2 {[%clk 0:00:07.1]} 38... Ne1+ {[%clk 0:00:01.4]}
39. Kf1 {[%clk 0:00:07.1]} 1-0

[Event "Late-Titled-Tuesday-Blitz-June-25-2024"]
[Site "Chess.com"]
[Date "2024.06.25"]
[Round "2"]
[White "Oleksandr_Bortnyk"]
[Black "Zura_19"]
[Result "1-0"]
[WhiteElo "3067"]
[BlackElo "2626"]
[TimeControl "180+1"]
[EndTime "14:17:27 PDT"]
[Termination "Oleksandr_Bortnyk won by resignation"]

1. d4 {[%clk 0:02:49.4]} 1... Nf6 {[%clk 0:02:58.7]} 2. Nc3 {[%clk 0:02:49]}
2... d5 {[%clk 0:02:50.3]} 3. Bf4 {[%clk 0:02:48.2]} 3... g6 {[%clk 0:02:48.8]}
4. e3 {[%clk 0:02:47.5]} 4... Bg7 {[%clk 0:02:48.9]} 5. h4 {[%clk 0:02:45]} 5...
c5 {[%clk 0:02:27.5]} 6. Nb5 {[%clk 0:02:42.4]} 6... Na6 {[%clk 0:02:25.6]} 7.
c3 {[%clk 0:02:42.3]} 7... Bf5 {[%clk 0:02:01.1]} 8. Nf3 {[%clk 0:02:38.5]} 8...
O-O {[%clk 0:01:56.4]} 9. Ne5 {[%clk 0:02:36.5]} 9... Nd7 {[%clk 0:01:54.1]} 10.
h5 {[%clk 0:02:30.9]} 10... Nxe5 {[%clk 0:01:50.3]} 11. dxe5 {[%clk 0:02:31.8]}
11... Qd7 {[%clk 0:01:26.1]} 12. Be2 {[%clk 0:02:24.3]} 12... Rad8 {[%clk
0:01:14.9]} 13. hxg6 {[%clk 0:02:16.4]} 13... fxg6 {[%clk 0:01:11.4]} 14. a4
{[%clk 0:01:07.7]} 14... Qe6 {[%clk 0:00:49.5]} 15. g4 {[%clk 0:01:02]} 15...
Be4 {[%clk 0:00:48.4]} 16. f3 {[%clk 0:01:02.4]} 16... Bxe5 {[%clk 0:00:42.4]}
17. fxe4 {[%clk 0:01:02.8]} 17... Bxf4 {[%clk 0:00:38.1]} 18. exf4 {[%clk
0:01:01.3]} 18... Rxf4 {[%clk 0:00:35.1]} 19. Qd2 {[%clk 0:00:48.2]} 19... Rxe4
{[%clk 0:00:33.8]} 20. Rh2 {[%clk 0:00:46.8]} 20... Qe5 {[%clk 0:00:33.3]} 21.
Qh6 {[%clk 0:00:43.8]} 21... Qg7 {[%clk 0:00:33.5]} 22. Qxg7+ {[%clk 0:00:40]}
22... Kxg7 {[%clk 0:00:34.4]} 23. Kd2 {[%clk 0:00:36.6]} 23... e6 {[%clk
0:00:32.9]} 24. Rah1 {[%clk 0:00:35.5]} 24... Rh8 {[%clk 0:00:29.3]} 25. b3
{[%clk 0:00:34.9]} 25... Rf4 {[%clk 0:00:17.5]} 26. Nd6 {[%clk 0:00:32.4]} 26...
Nb8 {[%clk 0:00:16.8]} 27. Nxb7 {[%clk 0:00:29.6]} 27... Nd7 {[%clk 0:00:17.2]}
28. Bb5 {[%clk 0:00:29.7]} 28... Ne5 {[%clk 0:00:17.1]} 29. Kc2 {[%clk
0:00:25.2]} 29... Nxg4 {[%clk 0:00:16.5]} 30. Re2 {[%clk 0:00:24.8]} 30... e5
{[%clk 0:00:14.6]} 31. Nxc5 {[%clk 0:00:25]} 31... Rf2 {[%clk 0:00:08.5]} 32.
Nd7 {[%clk 0:00:17]} 32... e4 {[%clk 0:00:07.2]} 33. a5 {[%clk 0:00:08.9]} 33...
h5 {[%clk 0:00:07.1]} 34. Nc5 {[%clk 0:00:05]} 34... h4 {[%clk 0:00:06.9]} 35.
Ne6+ {[%clk 0:00:02.8]} 35... Kf6 {[%clk 0:00:07.4]} 36. Nd4 {[%clk 0:00:03.7]}
36... Ke5 {[%clk 0:00:07.5]} 37. Bd7 {[%clk 0:00:03.8]} 37... Rxe2+ {[%clk
0:00:06.9]} 38. Nxe2 {[%clk 0:00:04.7]} 38... Ne3+ {[%clk 0:00:07.4]} 39. Kd2
{[%clk 0:00:04.9]} 39... Nf5 {[%clk 0:00:07.5]} 40. Bxf5 {[%clk 0:00:02.4]}
40... gxf5 {[%clk 0:00:08.4]} 41. Ke3 {[%clk 0:00:02.7]} 41... h3 {[%clk
0:00:07.8]} 42. Nf4 {[%clk 0:00:03.3]} 42... h2 {[%clk 0:00:08.2]} 43. Ng6+
{[%clk 0:00:03.9]} 43... Kf6 {[%clk 0:00:06.4]} 44. Nxh8 {[%clk 0:00:04.8]} 1-0

[Event "Late-Titled-Tuesday-Blitz-June-25-2024"]
[Site "Chess.com"]
[Date "2024.06.25"]
[Round "2"]
[White "Fandorine"]
[Black "Mikayel99"]
[Result "1-0"]
[WhiteElo "2913"]
[BlackElo "2602"]
[TimeControl "180+1"]
[EndTime "14:17:28 PDT"]
[Termination "Fandorine won by resignation"]

1. d4 {[%clk 0:03:00.9]} 1... d5 {[%clk 0:02:58.3]} 2. c4 {[%clk 0:02:44.7]}
2... e6 {[%clk 0:02:58.1]} 3. Nf3 {[%clk 0:02:44.3]} 3... Nf6 {[%clk 0:02:56.7]}
4. g3 {[%clk 0:02:44.2]} 4... dxc4 {[%clk 0:02:53]} 5. Bg2 {[%clk 0:02:42.2]}
5... c5 {[%clk 0:02:51]} 6. O-O {[%clk 0:02:41.5]} 6... Nc6 {[%clk 0:02:51.1]}
7. dxc5 {[%clk 0:02:37.5]} 7... Qxd1 {[%clk 0:02:52]} 8. Rxd1 {[%clk 0:02:38]}
8... Bxc5 {[%clk 0:02:52.4]} 9. Nbd2 {[%clk 0:02:38.7]} 9... c3 {[%clk
0:02:52.5]} 10. bxc3 {[%clk 0:02:39.6]} 10... O-O {[%clk 0:02:52.5]} 11. Nb3
{[%clk 0:02:38.3]} 11... Be7 {[%clk 0:02:52.9]} 12. Nfd4 {[%clk 0:02:36.1]}
12... Nxd4 {[%clk 0:02:51.7]} 13. cxd4 {[%clk 0:02:32.3]} 13... Nd5 {[%clk
0:02:51]} 14. Na5 {[%clk 0:02:32]} 14... Bb4 {[%clk 0:02:31.3]} 15. Bd2 {[%clk
0:02:17.9]} 15... Nc3 {[%clk 0:02:08.4]} 16. Kf1 {[%clk 0:01:54.5]} 16... Bxa5
{[%clk 0:01:40.8]} 17. Rdc1 {[%clk 0:01:54.5]} 17... Nxe2 {[%clk 0:01:18.9]} 18.
Kxe2 {[%clk 0:01:54.4]} 18... Bxd2 {[%clk 0:01:18.9]} 19. Kxd2 {[%clk
0:01:55.3]} 19... Rd8 {[%clk 0:01:10.1]} 20. Ke3 {[%clk 0:01:55.3]} 20... Rb8
{[%clk 0:01:02.8]} 21. Rc7 {[%clk 0:01:54.1]} 21... Rd7 {[%clk 0:00:52]} 22.
Rac1 {[%clk 0:01:53.2]} 22... Rxc7 {[%clk 0:00:51.4]} 23. Rxc7 {[%clk
0:01:54.1]} 23... Kf8 {[%clk 0:00:51.7]} 24. Kf4 {[%clk 0:01:41.7]} 24... Ke8
{[%clk 0:00:49.1]} 25. Ke5 {[%clk 0:01:42]} 25... Bd7 {[%clk 0:00:43.9]} 26. Kd6
{[%clk 0:01:35.6]} 26... Rd8 {[%clk 0:00:38.7]} 27. Bxb7 {[%clk 0:01:34.6]}
27... Bc8+ {[%clk 0:00:24.7]} 28. Kc5 {[%clk 0:01:17.6]} 28... Bxb7 {[%clk
0:00:25]} 29. Rxb7 {[%clk 0:01:18.5]} 29... Rd5+ {[%clk 0:00:25.4]} 30. Kc4
{[%clk 0:01:19.2]} 30... Ra5 {[%clk 0:00:25.6]} 31. Kb3 {[%clk 0:01:19.9]} 31...
Ra6 {[%clk 0:00:11.5]} 32. a3 {[%clk 0:00:30.2]} 32... Rb6+ {[%clk 0:00:11.4]}
33. Rxb6 {[%clk 0:00:30.7]} 33... axb6 {[%clk 0:00:12.3]} 34. Kb4 {[%clk
0:00:31.5]} 34... Kd7 {[%clk 0:00:12.9]} 35. Kb5 {[%clk 0:00:32.4]} 35... Kc7
{[%clk 0:00:13.6]} 36. Ka6 {[%clk 0:00:33.2]} 36... Kc6 {[%clk 0:00:14]} 37. a4
{[%clk 0:00:33.9]} 37... f6 {[%clk 0:00:07.2]} 38. g4 {[%clk 0:00:27.7]} 38...
Kc7 {[%clk 0:00:03]} 39. f4 {[%clk 0:00:24.6]} 39... Kc6 {[%clk 0:00:02.9]} 40.
h4 {[%clk 0:00:16.7]} 40... h5 {[%clk 0:00:03.2]} 41. gxh5 {[%clk 0:00:13.2]}
41... Kc7 {[%clk 0:00:03]} 42. Ka7 {[%clk 0:00:11.4]} 42... Kc6 {[%clk
0:00:03.1]} 43. Kb8 {[%clk 0:00:11.5]} 43... b5 {[%clk 0:00:02.9]} 44. a5 {[%clk
0:00:11.7]} 44... b4 {[%clk 0:00:03.5]} 45. a6 {[%clk 0:00:12.3]} 45... b3
{[%clk 0:00:03.5]} 46. a7 {[%clk 0:00:12.9]} 46... b2 {[%clk 0:00:04.2]} 47.
a8=Q+ {[%clk 0:00:13.5]} 47... Kd6 {[%clk 0:00:04.8]} 48. Qb7 {[%clk 0:00:14.1]}
1-0

[Event "Late-Titled-Tuesday-Blitz-June-25-2024"]
[Site "Chess.com"]
[Date "2024.06.25"]
[Round "2"]
[White "ahachess"]
[Black "bazar-wokzal"]
[Result "0-1"]
[WhiteElo "2294"]
[BlackElo "2600"]
[TimeControl "180+1"]
[EndTime "14:17:28 PDT"]
[Termination "bazar-wokzal won on time"]

1. e4 {[%clk 0:02:57.7]} 1... Nc6 {[%clk 0:02:56.7]} 2. Nf3 {[%clk 0:02:55.6]}
2... d5 {[%clk 0:02:56.5]} 3. exd5 {[%clk 0:02:51.7]} 3... Qxd5 {[%clk
0:02:56.6]} 4. Nc3 {[%clk 0:02:51.8]} 4... Qa5 {[%clk 0:02:56.4]} 5. Bc4 {[%clk
0:02:41.3]} 5... Bg4 {[%clk 0:02:56.1]} 6. h3 {[%clk 0:02:38.7]} 6... Bh5 {[%clk
0:02:55]} 7. g4 {[%clk 0:02:28.1]} 7... Bg6 {[%clk 0:02:54.6]} 8. d4 {[%clk
0:02:25.6]} 8... O-O-O {[%clk 0:02:54.6]} 9. Be3 {[%clk 0:02:02.3]} 9... e5
{[%clk 0:02:52.7]} 10. d5 {[%clk 0:01:56.4]} 10... Nf6 {[%clk 0:02:47.2]} 11.
O-O {[%clk 0:01:52.8]} 11... e4 {[%clk 0:02:28.6]} 12. Nh4 {[%clk 0:01:43.7]}
12... Ne5 {[%clk 0:02:27.2]} 13. Bb3 {[%clk 0:01:41.3]} 13... Bb4 {[%clk
0:02:22.1]} 14. Qd4 {[%clk 0:01:35.5]} 14... Rhe8 {[%clk 0:02:14.1]} 15. Rad1
{[%clk 0:01:01.4]} 15... c5 {[%clk 0:02:10.1]} 16. dxc6 {[%clk 0:00:49.1]} 16...
Rxd4 {[%clk 0:02:08.6]} 17. cxb7+ {[%clk 0:00:49.5]} 17... Kxb7 {[%clk
0:02:08.4]} 18. Rxd4 {[%clk 0:00:46.9]} 18... Rd8 {[%clk 0:01:25.6]} 19. Rfd1
{[%clk 0:00:43]} 19... Rxd4 {[%clk 0:01:24.7]} 20. Rxd4 {[%clk 0:00:42.5]} 20...
Bxc3 {[%clk 0:01:23.2]} 21. bxc3 {[%clk 0:00:41.5]} 21... Qxc3 {[%clk
0:01:22.5]} 22. Kg2 {[%clk 0:00:39.5]} 22... Nf3 {[%clk 0:01:17.7]} 23. Nxf3
{[%clk 0:00:36.2]} 23... exf3+ {[%clk 0:01:17.7]} 24. Kxf3 {[%clk 0:00:36.6]}
24... Bxc2 {[%clk 0:01:09.7]} 25. Rc4 {[%clk 0:00:35.9]} 25... Be4+ {[%clk
0:01:00.2]} 26. Rxe4 {[%clk 0:00:35.1]} 26... Nxe4 {[%clk 0:01:00]} 27. Kxe4
{[%clk 0:00:35.4]} 27... f6 {[%clk 0:00:55.1]} 28. h4 {[%clk 0:00:28]} 28... a5
{[%clk 0:00:54.4]} 29. Bg8 {[%clk 0:00:26.6]} 29... a4 {[%clk 0:00:50.6]} 30. h5
{[%clk 0:00:20.6]} 30... g6 {[%clk 0:00:42.1]} 31. hxg6 {[%clk 0:00:11.6]} 31...
hxg6 {[%clk 0:00:41.2]} 32. Bd5+ {[%clk 0:00:10.6]} 32... Ka6 {[%clk 0:00:38.3]}
33. Kf3 {[%clk 0:00:10.3]} 33... Qc2 {[%clk 0:00:23.3]} 34. Bf7 {[%clk
0:00:06.2]} 34... Kb5 {[%clk 0:00:21.1]} 35. Kg2 {[%clk 0:00:04.4]} 35... Kb4
{[%clk 0:00:20.8]} 36. Kg3 {[%clk 0:00:03.7]} 36... Ka3 {[%clk 0:00:20.3]} 37.
Kg2 {[%clk 0:00:02.1]} 37... Qe4+ {[%clk 0:00:19.6]} 38. Kg1 {[%clk 0:00:01.5]}
38... Kb2 {[%clk 0:00:19.2]} 0-1

[Event "Late-Titled-Tuesday-Blitz-June-25-2024"]
[Site "Chess.com"]
[Date "2024.06.25"]
[Round "2"]
[White "dropstoneDP"]
[Black "Cxrjs"]
[Result "1/2-1/2"]
[WhiteElo "3016"]
[BlackElo "2527"]
[TimeControl "180+1"]
[EndTime "14:17:30 PDT"]
[Termination "Game drawn - insufficient material"]

1. e4 {[%clk 0:03:00.9]} 1... e5 {[%clk 0:02:59.6]} 2. Nf3 {[%clk 0:03:00.4]}
2... Nc6 {[%clk 0:02:59.8]} 3. d4 {[%clk 0:02:59.2]} 3... exd4 {[%clk
0:02:59.7]} 4. Nxd4 {[%clk 0:02:59.9]} 4... Qf6 {[%clk 0:02:59.8]} 5. Be3 {[%clk
0:02:55.1]} 5... Bc5 {[%clk 0:02:59.3]} 6. c3 {[%clk 0:02:55.5]} 6... Nge7
{[%clk 0:02:58.9]} 7. Bb5 {[%clk 0:02:54.4]} 7... b6 {[%clk 0:02:56.2]} 8. O-O
{[%clk 0:02:46.9]} 8... Bb7 {[%clk 0:02:55.3]} 9. Nxc6 {[%clk 0:02:45.4]} 9...
Bxc6 {[%clk 0:02:52]} 10. Bxc6 {[%clk 0:02:44.3]} 10... Qxc6 {[%clk 0:02:51.6]}
11. Bxc5 {[%clk 0:02:42.1]} 11... Qxc5 {[%clk 0:02:51.8]} 12. Qd4 {[%clk
0:02:40.8]} 12... Qxd4 {[%clk 0:02:34.1]} 13. cxd4 {[%clk 0:02:41.7]} 13... d5
{[%clk 0:02:34.7]} 14. e5 {[%clk 0:02:30.8]} 14... c5 {[%clk 0:02:32.7]} 15. Rd1
{[%clk 0:02:28.2]} 15... O-O {[%clk 0:02:21.9]} 16. Nc3 {[%clk 0:02:27.5]} 16...
c4 {[%clk 0:02:11.6]} 17. f4 {[%clk 0:02:23]} 17... b5 {[%clk 0:02:01.4]} 18.
Nxb5 {[%clk 0:02:14.1]} 18... Rab8 {[%clk 0:01:58.2]} 19. Nc3 {[%clk 0:02:07.7]}
19... Rxb2 {[%clk 0:01:57.5]} 20. Rab1 {[%clk 0:01:57.4]} 20... Rfb8 {[%clk
0:01:57.2]} 21. Rxb2 {[%clk 0:01:54.8]} 21... Rxb2 {[%clk 0:01:57.2]} 22. Rb1
{[%clk 0:01:54.8]} 22... Rxb1+ {[%clk 0:01:56.2]} 23. Nxb1 {[%clk 0:01:55.7]}
23... Nf5 {[%clk 0:01:55.5]} 24. Nc3 {[%clk 0:01:55.3]} 24... Nxd4 {[%clk
0:01:51.5]} 25. Nxd5 {[%clk 0:01:55.4]} 25... f6 {[%clk 0:01:29.1]} 26. exf6
{[%clk 0:01:53.3]} 26... gxf6 {[%clk 0:01:28.8]} 27. Nxf6+ {[%clk 0:01:48]}
27... Kf7 {[%clk 0:01:28.9]} 28. Ne4 {[%clk 0:01:48.3]} 28... Ne2+ {[%clk
0:01:24.4]} 29. Kf2 {[%clk 0:01:47.3]} 29... Nxf4 {[%clk 0:01:23]} 30. Nd6+
{[%clk 0:01:47.6]} 30... Ke6 {[%clk 0:01:21.8]} 31. Nxc4 {[%clk 0:01:48.5]}
31... Kd5 {[%clk 0:01:18.7]} 32. Ne3+ {[%clk 0:01:45.2]} 32... Ke4 {[%clk
0:01:17]} 33. Ng4 {[%clk 0:01:37.9]} 33... h5 {[%clk 0:01:15.6]} 34. Nf6+ {[%clk
0:01:36.2]} 34... Ke5 {[%clk 0:01:14.1]} 35. Kf3 {[%clk 0:01:32.7]} 35... Nxg2
{[%clk 0:00:53.7]} 36. Nxh5 {[%clk 0:01:12.4]} 36... Ne1+ {[%clk 0:00:49.7]} 37.
Kg4 {[%clk 0:01:10.6]} 37... Nd3 {[%clk 0:00:47]} 38. Kg5 {[%clk 0:01:08.2]}
38... Nb4 {[%clk 0:00:46]} 39. a4 {[%clk 0:01:07.6]} 39... a5 {[%clk 0:00:43.4]}
40. Nf4 {[%clk 0:01:04]} 40... Nc6 {[%clk 0:00:23.3]} 41. h4 {[%clk 0:01:02.6]}
41... Nd4 {[%clk 0:00:22.4]} 42. h5 {[%clk 0:00:59.3]} 42... Nf3+ {[%clk
0:00:22.1]} 43. Kg4 {[%clk 0:00:59.8]} 43... Ke4 {[%clk 0:00:12]} 44. h6 {[%clk
0:00:52]} 44... Ne5+ {[%clk 0:00:12.3]} 45. Kg5 {[%clk 0:00:52.5]} 45... Nf7+
{[%clk 0:00:12.6]} 46. Kf6 {[%clk 0:00:17.2]} 46... Nxh6 {[%clk 0:00:11.6]} 47.
Ne6 {[%clk 0:00:17.5]} 47... Kd5 {[%clk 0:00:09.8]} 48. Nd8 {[%clk 0:00:16.9]}
48... Kc5 {[%clk 0:00:08.8]} 49. Nb7+ {[%clk 0:00:17.4]} 49... Kb4 {[%clk
0:00:09.1]} 50. Nxa5 {[%clk 0:00:18.3]} 50... Kxa5 {[%clk 0:00:09.4]} 51. Kg6
{[%clk 0:00:18.2]} 51... Kxa4 {[%clk 0:00:10.1]} 1/2-1/2